bitfinex/quotes_ETHUSD_20250722
["timestamp","ask_amount","ask_price","bid_price","bid_amount"]
[1753155640571,2.79340103,3711.4,3711.3,1.491]
[1753155640909,4.352,3711.4,3711.3,1.491]
[1753155641059,0.7809,3711.5,3711.3,1.491]
[1753155641259,14.5,3711.4,3711.3,1.491]
[1753155641487,17.19440103,3711.4,3711.3,1.491]
[1753155642094,7.83222972,3711.5,3711.3,1.491]
[1753155642494,0.7809,3711.5,3711.3,1.491]
[1753155642684,5.1429,3711.9,3711.3,1.491]
[1753155642891,0.7879,3711.9,3711.3,1.491]
[1753155643262,5.1409,3711.9,3711.3,1.491]
[1753155643702,0.7879,3711.9,3711.3,1.491]
[1753155643883,0.34818534,3711.8,3711.3,1.491]
[1753155644089,0.7879,3711.9,3711.4,2.69439136]
[1753155644409,3.7879,3712.3,3711.5,0.4432]
[1753155644714,4.353,3712.2,3711.5,3.13752731]
[1753155644911,7.04683063,3712.2,3711.5,0.4432]
[1753155645208,4.353,3712.2,3711.3,1.491]
[1753155645414,2.69415503,3711.8,3711.3,1.491]
[1753155645910,2.69404105,3711.9,3711.3,1.9342]
[1753155646090,3.7879,3712.3,3711.3,1.9342]
[1753155646287,2.69397081,3712.0,3711.3,1.9342]
[1753155646489,0.1344,3711.8,3711.4,1.2214]
[1753155646687,0.1344,3711.8,3711.7,2.69418325]
[1753155647210,0.1344,3711.8,3711.7,0.4344]
[1753155647414,0.1344,3711.8,3711.6,2.69424438]
[1753155647711,0.7879,3712.3,3711.7,3.1285554]
[1753155647916,0.7879,3712.3,3711.7,0.4344]
[1753155648501,0.1344,3711.7,3711.4,0.7782]
[1753155648705,1.13605858,3712.3,3711.3,1.491]
[1753155649183,2.6940434,3711.9,3711.3,1.491]
[1753155649581,5.1774,3711.8,3711.3,1.491]
[1753155649778,4.353,3711.7,3711.3,1.491]
[1753155650004,2.69426259,3711.6,3711.3,1.491]
[1753155650284,2.69427426,3711.6,3711.3,1.491]
[1753155650486,2.69426494,3711.6,3711.3,1.491]
[1753155650793,2.69440103,3711.4,3711.3,1.491]
[1753155650993,2.6943383,3711.5,3711.3,1.491]
[1753155651190,7.56493366,3711.7,3711.3,1.491]
[1753155651393,3.15893275,3711.6,3711.3,1.491]
[1753155651799,0.46461136,3711.6,3711.3,1.491]
[1753155652117,0.8244,3711.8,3711.3,1.491]
[1753155652314,4.353,3711.7,3711.3,1.491]
[1753155652911,3.51856568,3711.8,3711.3,1.491]
[1753155653099,7.04718325,3711.7,3711.3,1.491]
[1753155653410,2.69440103,3711.4,3711.3,1.491]
[1753155653817,0.8244,3711.8,3711.3,1.491]
[1753155653997,3.0,3711.6,3711.3,1.491]
[1753155654186,2.69426146,3711.6,3711.3,1.491]
[1753155654587,3.0,3712.0,3711.4,0.4344]
[1753155655013,2.69403855,3711.9,3711.4,0.4344]
[1753155655216,0.7893,3712.2,3711.3,2.2583]
[1753155655418,0.7893,3712.2,3711.3,1.491]
[1753155655419,4.353,3712.1,3711.3,1.491]
[1753155655728,7.04702116,3712.0,3711.3,1.491]
[1753155655938,2.69404935,3711.9,3711.3,1.491]
[1753155656431,4.353,3712.0,3711.3,1.491]
[1753155656935,2.69416836,3711.8,3711.3,1.491]
[1753155657097,4.353,3712.0,3711.3,1.491]
[1753155657300,2.69422571,3711.7,3711.3,1.491]
[1753155657501,4.353,3711.7,3711.3,1.491]
[1753155658243,2.69383163,3712.2,3711.4,1.24]
[1753155658539,3.0,3712.4,3711.7,2.69411245]
[1753155658704,4.353,3712.4,3711.8,3.12844711]
[1753155658896,20.94388192,3712.7,3711.8,0.4344]
[1753155659237,0.7,3712.1,3711.8,0.4344]
[1753155659398,2.69396551,3712.0,3711.8,0.4344]
[1753155659601,7.0465395,3712.6,3711.8,0.4344]
[1753155659602,4.353,3712.6,3711.8,0.4344]
[1753155659845,4.353,3712.6,3711.4,0.8056]
[1753155659846,4.353,3712.6,3711.9,0.4344]
[1753155660142,2.69402048,3712.0,3711.5,0.4344]
[1753155660303,4.353,3712.6,3711.5,0.4344]
[1753155660637,4.353,3712.5,3711.6,0.4344]
[1753155660840,3.002,3712.8,3711.7,0.02694183]
[1753155661150,2.69379043,3712.3,3711.8,0.4344]
[1753155661337,2.69379043,3712.3,3711.9,0.4344]
[1753155661536,2.69396463,3712.1,3711.5,0.4344]
[1753155661711,10.04841157,3712.8,3711.5,0.7075]
[1753155661712,3.002,3712.8,3711.5,0.7075]
[1753155661911,0.002,3712.8,3712.1,2.69387857]
[1753155662120,0.002,3712.8,3712.3,3.44403724]
[1753155662303,0.002,3712.8,3712.4,0.02693675]
[1753155662530,0.002,3712.8,3712.7,2.69345759]
[1753155662760,0.002,3712.8,3712.7,4.10579729]
[1753155662969,0.002,3712.8,3712.7,4.54019729]
[1753155663631,0.002,3712.8,3712.7,4.56713186]
[1753155663832,0.002,3712.8,3712.7,4.54019729]
[1753155664027,0.002,3712.8,3712.7,6.1987397]
[1753155664270,0.002,3712.8,3712.7,5.6139]
[1753155664672,0.002,3712.8,3712.7,0.8275]
[1753155664974,0.002,3712.8,3712.3,0.8275]
[1753155665143,0.002,3712.8,3712.3,3.52124323]
[1753155665331,0.002,3712.8,3712.4,0.4344]
[1753155665762,0.002,3712.8,3712.5,0.46133602]
[1753155665963,0.002,3712.8,3712.6,2.69346842]
[1753155666199,0.002,3712.8,3712.5,0.02693602]
[1753155666332,0.002,3712.8,3712.7,2.69345759]
[1753155666742,0.002,3712.8,3712.7,3.12785759]
[1753155667349,0.002,3712.8,3712.7,0.4344]
[1753155667943,0.002,3712.8,3712.3,0.8275]
[1753155668150,0.002,3712.8,3712.4,0.4344]
[1753155668351,0.002,3712.8,3712.6,2.69345831]
[1753155668549,0.002,3712.8,3712.4,3.68946464]
[1753155668550,0.002,3712.8,3712.5,3.12798881]
[1753155668755,0.002,3712.8,3712.6,2.72044815]
[1753155668939,0.002,3712.8,3712.6,0.4613353]
[1753155669132,0.002,3712.8,3712.7,0.4344]
[1753155671255,0.002,3712.8,3712.7,1.24113108]
[1753155671772,0.002,3712.8,3712.7,3.93458867]
[1753155672286,0.002,3712.8,3712.7,1.24113108]
[1753155672488,0.002,3712.8,3712.7,3.93458867]
[1753155672789,0.002,3712.8,3712.6,4.351]
[1753155672951,0.1344,3712.7,3712.6,4.8123353]
[1753155673546,0.002,3712.8,3712.7,2.69345759]
[1753155673754,0.002,3712.8,3712.7,0.46133457]
[1753155674083,0.002,3712.8,3712.7,0.4344]
[1753155674397,0.002,3712.8,3712.6,7.04450971]
[1753155674582,0.002,3712.8,3712.7,0.46133457]
[1753155675390,0.002,3712.8,3712.7,3.15479216]
[1753155675892,0.002,3712.8,3712.7,0.4344]
[1753155676299,0.002,3712.8,3712.6,4.351]
[1753155676900,0.002,3712.8,3712.6,4.7854]
[1753155677282,0.002,3712.8,3712.6,7.04447155]
[1753155677499,0.002,3712.8,3712.7,0.4738]
[1753155677886,0.002,3712.8,3712.7,3.19419216]
[1753155678407,0.002,3712.8,3712.7,0.4738]
[1753155679170,0.1364,3712.8,3712.7,3.16725759]
[1753155679370,0.1364,3712.8,3712.7,4.8228]
[1753155680010,0.1364,3712.8,3712.7,7.51625759]
[1753155680676,0.1364,3712.8,3712.4,0.4738]
[1753155680877,0.1364,3712.8,3712.5,4.349]
[1753155681110,0.1364,3712.8,3712.3,0.8275]
[1753155681341,0.1344,3712.5,3711.9,3.30217233]
[1753155681643,0.28517009,3712.8,3712.2,2.69382037]
[1753155681644,0.1344,3712.3,3712.2,2.69382037]
[1753155681845,0.1344,3712.3,3712.2,7.54355857]
[1753155682043,0.1344,3712.3,3712.2,7.51662037]
[1753155682408,0.002,3712.8,3712.2,7.51662037]
[1753155682409,0.002,3712.8,3712.2,8.5376788]
[1753155682742,0.002,3712.8,3712.5,2.69358746]
[1753155682743,0.1344,3712.6,3712.5,2.69358746]
[1753155682944,0.1344,3712.6,3712.5,3.16740269]
[1753155683145,0.002,3712.8,3712.7,2.69345759]
[1753155683309,0.002,3712.8,3712.7,7.04145759]
[1753155683644,0.002,3712.8,3712.7,7.93580666]
[1753155685665,0.002,3712.8,3712.7,5.24234907]
[1753155685814,0.002,3712.8,3712.7,4.8218]
[1753155686665,0.002,3712.8,3712.7,4.348]
[1753155687928,0.002,3712.8,3712.7,4.8218]
[1753155688439,0.002,3712.8,3712.7,7.51525759]
[1753155691240,0.1344,3713.0,3712.9,2.6933125]
[1753155691446,0.1344,3713.0,3712.9,8.16729263]
[1753155691675,0.002,3713.1,3713.0,2.69323996]
[1753155691874,0.002,3713.1,3713.0,3.16703996]
[1753155692374,0.002,3713.1,3713.0,0.4738]
[1753155692874,0.002,3713.1,3712.9,4.346]
[1753155693444,0.002,3713.1,3712.7,4.346]
[1753155693445,0.1344,3712.9,3712.7,4.346]
[1753155693776,0.002,3713.1,3713.0,2.69323996]
[1753155693985,0.002,3713.1,3713.0,8.30627235]
[1753155694149,0.002,3713.1,3713.0,8.27933996]
[1753155694350,0.002,3713.1,3713.0,11.82933996]
[1753155694583,0.002,3713.1,3713.0,11.96373996]
[1753155694762,0.002,3713.1,3713.0,13.49984884]
[1753155695083,0.002,3713.1,3713.0,9.15384884]
[1753155695287,0.002,3713.1,3713.0,13.49984884]
[1753155697589,0.002,3713.6,3713.5,2.69287733]
[1753155697774,0.002,3713.6,3713.5,7.03787733]
[1753155697979,0.002,3713.6,3713.5,7.74166506]
[1753155698166,0.002,3713.6,3713.5,8.21546506]
[1753155698804,0.002,3713.6,3713.5,7.74166506]
[1753155699101,0.002,3713.6,3713.5,8.21546506]
[1753155699308,0.002,3713.6,3713.5,12.58766506]
[1753155699603,0.002,3713.6,3713.5,12.72206506]
[1753155700501,0.002,3713.6,3713.5,12.72106506]
[1753155700704,0.002,3713.6,3713.5,12.24726506]
[1753155701001,0.002,3713.6,3713.5,8.56286506]
[1753155701204,0.002,3713.6,3713.5,3.39666506]
[1753155701403,0.1344,3714.0,3713.5,5.04778773]
[1753155701564,0.1344,3714.0,3713.5,7.74059334]
[1753155701770,0.1344,3714.0,3713.6,2.69280482]
[1753155702089,0.1344,3714.0,3713.7,4.344]
[1753155702408,0.1344,3714.0,3713.8,7.03662637]
[1753155702708,0.1344,3714.0,3713.9,2.6925873]
[1753155702874,0.1344,3714.0,3713.9,0.4738]
[1753155703073,0.1344,3714.0,3713.9,3.1663873]
[1753155703905,0.1344,3714.0,3713.9,0.4738]
[1753155704421,0.1344,3714.0,3713.3,0.1344]
[1753155704712,0.1344,3713.8,3713.4,4.343]
[1753155704920,0.1344,3713.8,3713.7,2.69273231]
[1753155705132,0.002,3714.3,3714.2,2.69236982]
[1753155705430,0.1364,3714.3,3714.2,7.03536982]
[1753155705779,0.1364,3714.3,3714.2,7.50916982]
[1753155706105,0.1364,3714.3,3714.2,7.79581013]
[1753155706324,0.002,3714.3,3714.2,7.79581013]
[1753155707498,0.002,3714.3,3714.2,8.34581013]
[1753155707812,0.002,3714.3,3714.2,9.29971013]
[1753155709632,0.002,3714.3,3714.2,6.60734031]
[1753155709792,0.002,3714.3,3713.8,0.7727]
[1753155710113,0.1344,3714.1,3713.9,4.341]
[1753155712691,0.1344,3714.1,3713.5,0.9071]
[1753155712899,0.1344,3713.9,3713.2,0.1344]
[1753155713113,0.1344,3713.9,3712.3,6.46]
[1753155713114,0.7565,3713.8,3712.9,0.55]
[1753155713411,0.1344,3713.5,3713.1,3.0]
[1753155713604,0.1344,3713.5,3713.1,1.06169271]
[1753155713778,2.69273352,3713.7,3713.1,1.06169271]
[1753155713976,0.1344,3713.3,3713.2,4.34]
[1753155714177,2.69284799,3713.6,3713.2,4.34]
[1753155714399,2.69284799,3713.6,3712.8,0.02693385]
[1753155714400,0.3357,3713.6,3712.8,0.02693385]
[1753155714608,0.1344,3713.0,3712.8,0.02693385]
[1753155714810,0.1344,3713.0,3712.9,4.34]
[1753155714980,0.1344,3713.0,3712.9,5.62338166]
[1753155715186,0.1344,3713.0,3712.9,5.65031478]
[1753155715695,0.1344,3713.0,3712.9,5.62338166]
[1753155716036,0.1344,3713.0,3712.9,5.65031478]
[1753155716192,0.1344,3713.0,3712.9,5.62338166]
[1753155716392,0.1344,3713.0,3712.9,5.65031478]
[1753155717227,0.1344,3713.0,3712.9,4.36693312]
[1753155717490,0.1344,3713.0,3712.9,4.34]
[1753155717938,0.1344,3713.0,3712.4,1.3558]
[1753155718091,0.1344,3713.0,3712.5,4.339]
[1753155718295,0.1344,3713.0,3712.9,2.6933125]
[1753155718523,0.1344,3713.0,3712.9,7.0323125]
[1753155718938,0.1344,3713.0,3712.9,4.7883]
[1753155719127,0.1344,3713.0,3712.9,7.4816125]
[1753155719323,0.1344,3713.0,3712.9,8.26048014]
[1753155719714,0.1344,3713.0,3712.9,7.81118014]
[1753155719911,0.1344,3713.0,3712.9,4.339]
[1753155720232,0.1344,3713.0,3712.9,7.0323125]
[1753155720430,0.1344,3713.0,3712.9,7.4816125]
[1753155720729,2.69273947,3713.7,3713.0,2.69323019]
[1753155720909,0.1344,3713.2,3713.1,4.339]
[1753155722937,0.1344,3713.2,3713.1,8.3166991]
[1753155723099,0.7684,3714.1,3713.1,9.26232743]
[1753155723301,0.1344,3713.5,3713.3,2.69300735]
[1753155723635,0.1344,3713.5,3713.4,4.7873]
[1753155723999,0.1344,3713.5,3713.4,4.338]
[1753155724432,0.1344,3713.5,3713.3,4.338]
[1753155724602,0.3357,3714.0,3713.3,4.338]
[1753155724803,2.69267903,3713.8,3713.3,4.338]
[1753155725025,0.3796546,3713.9,3713.3,4.338]
[1753155725224,2.69273264,3713.7,3713.3,4.338]
[1753155725431,3.02835985,3713.8,3713.3,4.338]
[1753155725938,2.69273538,3713.7,3713.3,4.338]
[1753155726319,0.3357,3713.8,3713.3,4.338]
[1753155726320,0.3796546,3713.9,3713.3,4.338]
[1753155726525,2.69274354,3713.7,3713.3,4.338]
[1753155726725,2.69287836,3713.5,3713.3,4.338]
[1753155726937,3.02850272,3713.7,3713.3,4.338]
[1753155727232,0.3796546,3713.9,3713.3,4.338]
[1753155727625,2.6925873,3713.9,3713.3,4.338]
[1753155727932,2.69281079,3713.6,3713.3,4.338]
[1753155728119,2.6925873,3713.9,3713.3,4.338]
[1753155728637,0.7684,3714.1,3713.3,4.7873]
[1753155728836,0.1344,3713.6,3713.3,4.7873]
[1753155729143,0.1344,3713.6,3713.4,3.62097576]
[1753155729303,0.1344,3713.6,3713.3,4.338]
[1753155729511,0.1344,3713.6,3713.4,4.337]
[1753155729710,0.1344,3713.6,3713.5,4.337]
[1753155731317,0.1344,3713.6,3713.3,4.337]
[1753155732152,0.1344,3713.6,3713.3,7.02995622]
[1753155732353,0.1344,3713.6,3713.3,5.80354164]
[1753155732553,2.69286668,3713.6,3713.3,4.337]
[1753155732846,0.7684,3714.1,3713.3,4.337]
[1753155732847,0.3357,3713.9,3713.3,4.337]
[1753155733054,0.3357,3713.9,3712.9,0.001]
[1753155733055,0.7642,3713.2,3712.9,0.001]
[1753155733216,0.7642,3713.2,3712.9,4.337]
[1753155733420,0.7642,3713.2,3712.9,0.001]
[1753155733847,1.0999,3713.2,3712.9,0.001]
[1753155734253,0.7642,3713.2,3712.9,0.001]
[1753155734749,0.3357,3713.1,3712.9,0.001]
[1753155734949,2.69323996,3713.0,3712.9,0.001]
[1753155735126,3.02893996,3713.0,3712.9,0.001]
[1753155735448,3.6775635,3713.0,3712.9,0.001]
[1753155735949,2.69323996,3713.0,3712.9,0.001]
[1753155736317,3.02893996,3713.0,3712.9,0.001]
[1753155737029,0.7642,3713.2,3712.9,0.001]
[1753155737252,5.0992,3713.2,3712.9,0.001]
[1753155737449,5.0982,3713.2,3712.9,0.001]
[1753155737788,7.79130677,3713.2,3712.9,0.001]
[1753155738069,2.69323996,3713.0,3712.9,0.001]
[1753155738573,6.02893996,3713.0,3712.9,0.001]
[1753155738776,6.82383996,3713.0,3712.9,0.001]
[1753155741277,3.48872037,3712.2,3712.1,0.001]
[1753155741499,7.82272037,3712.2,3712.1,0.001]
[1753155742438,7.82172037,3712.2,3712.1,0.001]
[1753155743483,11.15742037,3712.2,3712.1,0.001]
[1753155745488,6.48872037,3712.2,3712.1,0.001]
[1753155745787,7.82172037,3712.2,3712.1,0.001]
[1753155745962,7.02682037,3712.2,3712.1,0.001]
[1753155747748,2.69382037,3712.2,3712.1,0.001]
[1753155747984,7.64857041,3712.2,3712.1,0.001]
[1753155748979,7.98427041,3712.2,3712.1,0.001]
[1753155749393,10.98427041,3712.2,3712.1,0.001]
[1753155749577,11.47857041,3712.2,3712.1,0.001]
[1753155749886,11.81427041,3712.2,3712.1,0.001]
[1753155750676,11.47857041,3712.2,3712.1,0.001]
[1753155750854,7.14557041,3712.2,3712.1,0.001]
[1753155751190,4.14557041,3712.2,3712.1,0.001]
[1753155751370,8.47657041,3712.2,3712.1,0.001]
[1753155752391,8.81227041,3712.2,3712.1,0.001]
[1753155752554,11.81227041,3712.2,3712.1,0.001]
[1753155752959,26.31227041,3712.2,3712.1,1e-08]
[1753155753182,26.86227041,3712.2,3712.1,1e-08]
[1753155753959,22.53127041,3712.2,3712.1,1e-08]
[1753155754163,26.86127041,3712.2,3712.1,1e-08]
[1753155755084,22.53127041,3712.2,3712.1,1e-08]
[1753155755385,21.64557041,3712.2,3712.1,1e-08]
[1753155755590,22.97557041,3712.2,3712.1,1e-08]
[1753155755894,26.31127041,3712.2,3712.1,1e-08]
[1753155756461,21.64557041,3712.2,3712.1,1e-08]
[1753155756690,25.97557041,3712.2,3712.1,1e-08]
[1753155757064,26.31127041,3712.2,3712.1,1e-08]
[1753155758098,26.86127041,3712.2,3712.1,1e-08]
[1753155760594,26.86027041,3712.2,3712.1,1e-08]
[1753155762276,21.64557041,3712.2,3712.1,1e-08]
[1753155762681,25.97357041,3712.2,3712.1,1e-08]
[1753155762890,26.30927041,3712.2,3712.1,1e-08]
[1753155763296,26.85927041,3712.2,3712.1,1e-08]
[1753155766561,22.53127041,3712.2,3712.1,1e-08]
[1753155766671,26.85827041,3712.2,3712.1,1e-08]
[1753155767183,32.08516499,3712.2,3712.1,1e-08]
[1753155767569,27.75816499,3712.2,3712.1,1e-08]
[1753155767990,21.64557041,3712.2,3712.1,1e-08]
[1753155768189,18.64557041,3712.2,3712.1,1e-08]
[1753155768510,2.69382037,3712.2,3712.1,1e-08]
[1753155768808,7.01982037,3712.2,3712.1,1e-08]
[1753155769108,24.51982037,3712.2,3712.1,1e-08]
[1753155769810,20.19382037,3712.2,3712.1,1e-08]
[1753155769995,21.51982037,3712.2,3712.1,1e-08]
[1753155770311,24.51982037,3712.2,3712.1,1e-08]
[1753155770900,5.69382037,3712.2,3712.1,0.42930001]
[1753155771205,10.01982037,3712.2,3712.1,1e-08]
[1753155771409,24.51982037,3712.2,3712.1,1e-08]
[1753155771824,24.85552037,3712.2,3712.1,1e-08]
[1753155772397,24.51982037,3712.2,3712.1,1e-08]
[1753155772596,20.19382037,3712.2,3712.1,1e-08]
[1753155772797,24.51882037,3712.2,3712.1,1e-08]
[1753155773419,24.51782037,3712.2,3712.1,1e-08]
[1753155774513,10.01782037,3712.2,3712.1,1e-08]
[1753155774996,24.51782037,3712.2,3712.1,1e-08]
[1753155775615,25.06782037,3712.2,3712.1,1e-08]
[1753155775814,25.30192037,3712.2,3712.1,1e-08]
[1753155776126,25.30092037,3712.2,3712.1,1e-08]
[1753155776660,20.97792037,3712.2,3712.1,1e-08]
[1753155776854,25.30092037,3712.2,3712.1,1e-08]
[1753155777143,24.51682037,3712.2,3712.1,1e-08]
[1753155777938,10.01682037,3712.2,3712.1,1e-08]
[1753155778126,10.01682037,3712.2,3712.1,0.42930001]
[1753155779009,5.69382037,3712.2,3712.1,0.42930001]
[1753155779228,10.01582037,3712.2,3712.1,0.42930001]
[1753155779797,10.01582037,3712.2,3712.1,1e-08]
[1753155780420,2.69382037,3712.2,3712.1,0.42930001]
[1753155780618,7.01482037,3712.2,3712.1,0.42930001]
[1753155781139,10.01482037,3712.2,3712.1,1e-08]
[1753155781552,10.71482037,3712.2,3712.1,1e-08]
[1753155782132,6.39382037,3712.2,3712.1,1e-08]
[1753155782315,10.71482037,3712.2,3712.1,0.42930001]
[1753155782937,11.51842037,3712.2,3712.1,1e-08]
[1753155783596,11.85412037,3712.2,3712.1,1e-08]
[1753155783734,12.40412037,3712.2,3712.1,1e-08]
[1753155784064,29.73412037,3712.2,3712.1,1e-08]
[1753155784786,29.73312037,3712.2,3712.1,1e-08]
[1753155785398,6.52220103,3711.4,3711.3,1.491]
[1753155785556,10.84220103,3711.4,3711.3,1.491]
[1753155787676,6.52220103,3711.4,3711.3,1.491]
[1753155787877,10.84120103,3711.4,3711.3,1.491]
[1753155788972,6.52220103,3711.4,3711.3,1.491]
[1753155789138,10.01340103,3711.4,3711.3,1.9203]
[1753155789338,7.01340103,3711.4,3711.3,1.9203]
[1753155789582,10.01340103,3711.4,3711.3,1.9203]
[1753155789793,10.01340103,3711.4,3711.3,1.491]
[1753155790353,5.69440103,3711.4,3711.3,1.491]
[1753155790563,10.01340103,3711.4,3711.3,1.491]
[1753155791975,10.01240103,3711.4,3711.3,1.491]
[1753155792200,10.01240103,3711.4,3711.3,0.41934375]
[1753155792409,11.10640103,3711.4,3711.3,0.41934375]
[1753155792553,25.60640103,3711.4,3711.3,0.41934375]
[1753155792961,25.27070103,3711.4,3711.3,0.41934375]
[1753155793149,20.95270103,3711.4,3711.3,0.41934375]
[1753155793350,24.51140103,3711.4,3711.3,0.41934375]
[1753155793751,17.5,3711.4,3711.3,0.84864375]
[1753155794109,18.817,3711.4,3711.3,0.84864375]
[1753155794463,2.69403809,3711.9,3711.3,0.84864375]
[1753155794715,6.465,3712.1,3711.5,0.8297]
[1753155794716,4.317,3711.8,3711.5,0.8297]
[1753155794846,0.002,3712.2,3711.4,0.4293]
[1753155794847,0.002,3712.2,3711.8,2.6940403]
[1753155795191,0.002,3712.2,3712.0,0.8297]
[1753155795498,0.002,3712.2,3712.0,3.5236371]
[1753155795648,0.002,3712.2,3712.0,0.47]
[1753155795851,0.002,3712.2,3712.1,0.4293]
[1753155796090,4.318,3712.2,3712.1,0.4293]
[1753155797377,0.002,3712.2,3712.1,4.78960301]
[1753155797585,0.002,3712.2,3712.1,4.80500301]
[1753155797976,0.002,3712.2,3712.1,4.83194193]
[1753155798569,0.002,3712.2,3712.1,5.38194193]
[1753155798787,0.002,3712.2,3712.1,5.48940301]
[1753155799269,0.002,3712.2,3712.1,4.93940301]
[1753155799513,0.002,3712.2,3712.1,4.96634193]
[1753155800304,0.002,3712.2,3712.1,4.93940301]
[1753155802065,0.002,3712.2,3712.1,4.96634193]
[1753155802266,0.002,3712.2,3712.1,5.48940301]
[1753155802465,0.1344,3712.9,3712.7,0.8092]
[1753155802703,0.1344,3712.9,3712.8,0.9147]
[1753155804703,2.8277125,3712.9,3712.8,0.9147]
[1753155805276,3.37980852,3712.9,3712.8,0.47]
[1753155806637,2.8277125,3712.9,3712.8,0.47]
[1753155807913,2.8277125,3712.9,3712.8,0.9147]
[1753155808118,7.1377125,3712.9,3712.8,0.9147]
[1753155808324,2.8277125,3712.9,3712.8,0.9147]
[1753155808531,7.1377125,3712.9,3712.8,0.47]
[1753155809722,2.8277125,3712.9,3712.8,0.47]
[1753155809903,7.1377125,3712.9,3712.8,0.9147]
[1753155811020,10.9312125,3712.9,3712.8,0.47]
[1753155811218,10.1377125,3712.9,3712.8,0.47]
[1753155811421,7.1377125,3712.9,3712.8,0.47]
[1753155813244,7.9047125,3712.9,3712.8,0.47]
[1753155813444,7.1357125,3712.9,3712.8,0.9147]
[1753155813824,7.1357125,3712.9,3712.8,1.7045]
[1753155814222,7.1357125,3712.9,3712.8,0.47]
[1753155817248,12.36023931,3712.9,3712.8,0.47]
[1753155818107,21.6347125,3712.9,3712.8,0.9147]
[1753155818544,2.8277125,3712.9,3712.8,0.9147]
[1753155819047,7.1337125,3712.9,3712.8,0.9147]
[1753155819212,0.1344,3712.9,3712.8,1.6892]
[1753155819923,0.1344,3712.9,3712.8,1.85812]
[1753155820119,0.1344,3712.9,3712.8,4.55150504]
[1753155820526,0.1344,3712.9,3712.8,1.85812]
[1753155821350,0.1344,3712.9,3712.8,1.6892]
[1753155822720,2.8277125,3712.9,3712.8,1.6892]
[1753155822920,2.8277125,3712.9,3712.8,0.47]
[1753155823949,17.3277125,3712.9,3712.8,0.47]
[1753155824536,14.6344,3712.9,3712.8,0.9147]
[1753155824738,0.1344,3712.9,3712.8,1.7109]
[1753155825162,0.1344,3712.9,3712.8,1.88199]
[1753155825316,0.1344,3713.1,3713.0,2.69323996]
[1753155825516,0.1344,3713.1,3713.0,4.40413996]
[1753155825722,0.002,3713.6,3713.0,4.40413996]
[1753155825723,0.1344,3713.5,3713.3,2.69296727]
[1753155826039,0.1344,3713.5,3713.4,1.73782949]
[1753155826231,0.1344,3713.5,3713.4,1.7109]
[1753155827438,0.1344,3713.5,3713.4,2.15129356]
[1753155828831,0.1344,3713.5,3713.4,5.4211729]
[1753155829033,0.002,3713.6,3713.5,4.05097733]
[1753155829276,0.002,3713.6,3713.5,4.97067733]
[1753155829762,0.002,3713.6,3713.5,2.2778]
[1753155829963,0.002,3713.6,3713.5,5.52522555]
[1753155832264,0.002,3713.6,3713.5,5.55215432]
[1753155833567,0.002,3713.6,3713.5,5.52522555]
[1753155833763,0.002,3713.6,3713.5,5.55215432]
[1753155834065,0.002,3713.6,3713.5,5.52522555]
[1753155834432,0.002,3713.6,3713.5,5.55215432]
[1753155834835,0.002,3713.6,3713.5,5.52522555]
[1753155835655,0.002,3713.6,3713.5,8.52522555]
[1753155836656,0.002,3713.6,3713.5,12.82322555]
[1753155837041,0.002,3713.7,3713.6,7.02480482]
[1753155837239,0.002,3713.7,3713.6,9.79563994]
[1753155837454,0.002,3713.7,3713.6,9.34593994]
[1753155837660,0.002,3713.7,3713.6,9.79563994]
[1753155837871,0.002,3714.3,3714.2,6.24236982]
[1753155838039,0.002,3714.3,3714.2,11.79156982]
[1753155838237,0.002,3714.3,3714.2,13.5548268]
[1753155840170,1e-08,3714.4,3714.3,6.24229733]
[1753155840469,1e-08,3714.4,3714.3,7.96269733]
[1753155840656,1e-08,3714.4,3714.3,7.41269733]
[1753155840848,1e-08,3714.4,3714.3,11.70769733]
[1753155841044,1e-08,3714.4,3714.3,13.27906227]
[1753155841250,1e-08,3714.4,3714.3,13.82906227]
[1753155841682,0.002,3714.6,3714.5,3.24215237]
[1753155842037,0.002,3714.6,3714.5,3.82625237]
[1753155842238,0.002,3714.6,3714.5,3.85317389]
[1753155842575,0.002,3714.6,3714.5,5.52142751]
[1753155842763,0.002,3714.6,3714.5,5.49450599]
[1753155842936,0.002,3714.6,3714.5,9.78950599]
[1753155844436,0.002,3714.6,3714.5,7.09735362]
[1753155844634,0.002,3714.6,3714.3,1.2707]
[1753155844876,0.002,3714.6,3714.4,4.294]
[1753155845079,0.002,3714.6,3714.5,4.294]
[1753155845638,0.002,3714.6,3714.5,5.0583]
[1753155845840,0.002,3714.6,3714.3,1.2343]
[1753155846039,0.002,3714.6,3714.4,4.293]
[1753155846282,0.002,3714.6,3714.5,4.293]
[1753155846643,0.002,3714.6,3714.5,5.6107624]
[1753155846988,0.002,3714.6,3714.5,10.22161477]
[1753155847200,0.002,3714.6,3714.5,10.19469325]
[1753155847477,0.002,3714.6,3714.5,13.19469325]
[1753155849240,0.002,3714.6,3714.5,5.75984088]
[1753155849439,0.002,3714.6,3714.5,6.81714088]
[1753155849640,0.002,3714.6,3714.5,11.66815237]
[1753155849878,0.002,3714.6,3714.5,5.976]
[1753155850257,0.002,3714.6,3714.5,8.66815237]
[1753155850461,0.002,3714.6,3714.5,5.976]
[1753155850784,0.002,3714.6,3714.5,4.762]
[1753155850965,0.002,3714.6,3714.5,7.45415237]
[1753155851161,0.002,3714.6,3714.5,4.762]
[1753155851362,0.002,3714.6,3714.5,5.2107]